[Event "XXXI Torre Memorial 2019"]
[Site "Merida"]
[Date "2019.12.15"]
[Round "3.13"]
[White "Berdayes Ason, Dylan Isidro"]
[Black "Noboa Silva, Kevin"]
[Result "1-0"]
[ECO "C09"]
[WhiteElo "2448"]
[BlackElo "2306"]
[Annotator "NA"]
[PlyCount "109"]
[EventDate "2019.12.13"]
[EventType "swiss"]
[EventCountry "MEX"]
[SourceTitle "playchess.com"]
[Source "ChessBase"]
[SourceQuality "1"]
[TimeControl "5400+30"]

1. e4 {[%emt 0:00:00]} e6 {[%emt 0:00:00]} 2. d4 {[%emt 0:00:00]} d5 {[%emt 0:00:00]} 3. Nd2 {[%emt 0:00:00]} c5 {[%emt 0:00:09]} 4. exd5 {[%emt 0:00:00]} exd5 {[%emt 0:00:14]} 5. Ngf3 {[%emt 0:00:07]} Nc6 {[%emt 0:00:41]} 6. Bb5 {[%emt 0:11:06]} Qe7+ {[%emt 0:02:57]} 7. Be2 {[%emt 0:03:57]} Qc7 {[%emt 0:00:59]} 8. O-O {[%emt 0:00:51]} Nf6 {[%emt 0:01:26]} 9. Re1 {[%emt 0:02:16]} cxd4 {[%emt 0:01:50]} 10. Bb5+ {[%emt 0:03:48]} Be7 {[%emt 0:01:28]} 11. Nxd4 {[%emt 0:02:07]} O-O {[%emt 0:01:37]} 12. N2f3 {[%emt 0:03:31]} Bg4 {[%emt 0:08:56]} 13. Be2 {[%emt 0:03:41]} Rae8 {[%emt 0:09:41]} 14. Be3 {[%emt 0:13:46]} Bc5 {[%emt 0:17:34]} 15. c3 {[%emt 0:00:52]} Bxf3 {[%emt 0:11:54]} 16. Bxf3 {[%emt 0:00:27]} Nxd4 {[%emt 0:00:34]} 17. cxd4 {[%emt 0:00:44]} Bd6 {[%emt 0:02:00]} 18. g3 {[%emt 0:00:06]} Qb6 {[%emt 0:00:43]} 19. Qb3 {[%emt 0:02:15]} Qxb3 {[%emt 0:02:23]} 20. axb3 {[%emt 0:00:03]} a6 {[%emt 0:00:48]} 21. Kf1 {[%emt 0:02:13]} h6 {[%emt 0:02:34]} 22. Ke2 {[%emt 0:00:37]} Rc8 {[%emt 0:00:51]} 23. Rec1 {[%emt 0:01:32]} Rfe8 {[%emt 0:04:13]} 24. Kd3 {[%emt 0:00:18]} Rcd8 {[%emt 0:03:51]} 25. Rc2 {[%emt 0:01:51]} Ne4 {[%emt 0:01:49]} 26. Bg4 {[%emt 0:05:19]} Rf8 {[%emt 0:09:10]} 27. Bf5 {[%emt 0:00:39]} Rfe8 {[%emt 0:03:03]} 28. Rac1 {[%emt 0:04:12]} Bb8 {[%emt 0:00:40]} 29. Rc8 {[%emt 0:04:49]} Nd6 {[%emt 0:03:06]} 30. Rxd8 {[%emt 0:00:07]} Rxd8 {[%emt 0:00:01]} 31. Bh3 {[%emt 0:00:12]} Ba7 {[%emt 0:01:23]} 32. Bf4 {[%emt 0:02:36]} Ne4 {[%emt 0:06:18]} 33. Rc2 {[%emt 0:03:02]} g5 {[%emt 0:01:24]} 34. Be5 {[%emt 0:01:52]} Bb8 {[%emt 0:01:47]} 35. f3 {[%emt 0:02:21]} Nd6 {[%emt 0:00:22]} 36. Rc5 {[%emt 0:00:57]} f6 {[%emt 0:00:54]} 37. Bxf6 {[%emt 0:00:12]} Rf8 {[%emt 0:00:12]} 38. Be6+ {[%emt 0:01:02]} Kh7 {[%emt 0:00:07]} 39. Be5 {[%emt 0:01:00]} Rxf3+ {[%emt 0:00:30]} 40. Kc2 {[%emt 0:00:38]} Nb5 {[%emt 0:01:16]} 41. Bxd5 {[%emt 0:08:05]} Bxe5 {[%emt 0:00:22]} 42. Bxf3 {[%emt 0:01:29]} Nxd4+ {[%emt 0:00:01]} 43. Kd3 {[%emt 0:00:05]} Nxf3 {[%emt 0:00:07]} 44. Ke4 {[%emt 0:00:34]} Bxb2 {[%emt 0:01:27]} 45. Kxf3 {[%emt 0:00:06]} b5 {[%emt 0:00:34]} 46. Rc6 {[%emt 0:00:48]} a5 {[%emt 0:00:26]} 47. Rb6 {[%emt 0:00:19]} b4 {[%emt 0:00:12]} 48. Ra6 {[%emt 0:00:04]} h5 {[%emt 0:00:51]} 49. h3 {[%emt 0:00:41]} Bc3 {[%emt 0:00:22]} 50. Rxa5 {[%emt 0:00:07]} Kg6 {[%emt 0:00:05]} 51. g4 {[%emt 0:00:23]} hxg4+ {[%emt 0:00:17]} 52. hxg4 {[%emt 0:00:16]} Kf6 {[%emt 0:00:35]} 53. Ke4 {[%emt 0:00:08]} Bd2 {[%emt 0:00:37]} 54. Ra6+ {[%emt 0:00:04]} Kf7 {[%emt 0:00:27]} 55. Kf5 {[%emt 0:00:08]} 1-0

[Event "XXXI Torre Memorial 2019"]
[Site "Merida"]
[Date "2019.12.15"]
[Round "3.14"]
[White "Amaro Alfonso, Raynner"]
[Black "Fernandez Cardoso, Alexey"]
[Result "1/2-1/2"]
[ECO "D00"]
[WhiteElo "2296"]
[BlackElo "2441"]
[Annotator "NA"]
[PlyCount "86"]
[EventDate "2019.12.13"]
[EventType "swiss"]
[EventCountry "MEX"]
[SourceTitle "playchess.com"]
[Source "ChessBase"]
[SourceQuality "1"]
[TimeControl "5400+30"]

1. d4 {[%emt 0:00:00]} d5 {[%emt 0:00:00]} 2. Bf4 {[%emt 0:00:00]} Nf6 {[%emt 0:00:00]} 3. e3 {[%emt 0:00:03]} c6 {[%emt 0:01:34]} 4. c3 {[%emt 0:01:09]} Bf5 {[%emt 0:02:52]} 5. h3 {[%emt 0:00:47]} Nbd7 {[%emt 0:01:53]} 6. Nf3 {[%emt 0:00:08]} e6 {[%emt 0:00:32]} 7. Nbd2 {[%emt 0:00:45]} Be7 {[%emt 0:00:42]} 8. Be2 {[%emt 0:02:29]} O-O {[%emt 0:01:06]} 9. O-O {[%emt 0:00:45]} Ne4 {[%emt 0:01:18]} 10. Nxe4 {[%emt 0:01:03]} Bxe4 {[%emt 0:00:09]} 11. Nd2 {[%emt 0:00:34]} Bg6 {[%emt 0:00:15]} 12. c4 {[%emt 0:01:42]} Re8 {[%emt 0:02:53]} 13. Qb3 {[%emt 0:04:12]} Qb6 {[%emt 0:05:31]} 14. Qc3 {[%emt 0:16:17]} Bb4 {[%emt 0:04:33]} 15. Qc1 {[%emt 0:00:18]} e5 {[%emt 0:01:06]} 16. dxe5 {[%emt 0:01:14]} Nxe5 {[%emt 0:00:37]} 17. Bxe5 {[%emt 0:04:03]} Rxe5 {[%emt 0:00:10]} 18. Nf3 {[%emt 0:00:37]} Ree8 {[%emt 0:00:58]} 19. a3 {[%emt 0:02:21]} Bd6 {[%emt 0:05:48]} 20. cxd5 {[%emt 0:00:14]} cxd5 {[%emt 0:00:08]} 21. Qd2 {[%emt 0:01:33]} Rad8 {[%emt 0:00:10]} 22. Rfd1 {[%emt 0:06:56]} h6 {[%emt 0:08:21]} 23. Rac1 {[%emt 0:01:52]} Bb8 {[%emt 0:05:20]} 24. Qd4 {[%emt 0:00:39]} Qd6 {[%emt 0:03:04]} 25. Qb4 {[%emt 0:02:57]} Qf6 {[%emt 0:07:04]} 26. Qxb7 {[%emt 0:20:14]} Be4 {[%emt 0:00:48]} 27. Qb4 {[%emt 0:02:53]} Re6 {[%emt 0:01:15]} 28. Qd4 {[%emt 0:01:53]} Qe7 {[%emt 0:05:35]} 29. Kf1 {[%emt 0:03:01]} Rg6 {[%emt 0:02:32]} 30. b4 {[%emt 0:04:05]} f5 {[%emt 0:02:16]} 31. b5 {[%emt 0:03:53]} f4 {[%emt 0:02:28]} 32. Rc6 {[%emt 0:01:01]} Rxc6 {[%emt 0:00:20]} 33. bxc6 {[%emt 0:00:11]} fxe3 {[%emt 0:00:22]} 34. Qxe3 {[%emt 0:00:23]} Qf6 {[%emt 0:03:47]} 35. Qc5 {[%emt 0:06:37]} Rc8 {[%emt 0:04:25]} 36. Nd2 {[%emt 0:01:03]} Rxc6 {[%emt 0:04:56]} 37. Nxe4 {[%emt 0:00:23]} Rxc5 {[%emt 0:02:55]} 38. Nxf6+ {[%emt 0:00:24]} gxf6 {[%emt 0:00:01]} 39. Bf3 {[%emt 0:02:26]} Kf8 {[%emt 0:02:59]} 40. Bxd5 {[%emt 0:01:28]} Ke7 {[%emt 0:00:39]} 41. Rd3 {[%emt 0:03:55]} Rc1+ {[%emt 0:00:09]} 42. Ke2 {[%emt 0:00:07]} Rc2+ {[%emt 0:00:04]} 43. Kf3 Bd6 1/2-1/2

[Event "XXXI Torre Memorial 2019"]
[Site "Merida"]
[Date "2019.12.15"]
[Round "3.15"]
[White "Alvarez Pedraza, Aramis"]
[Black "Limon Olmos, Ivan Alonso"]
[Result "1-0"]
[ECO "D02"]
[WhiteElo "2429"]
[BlackElo "2151"]
[Annotator "NA"]
[PlyCount "105"]
[EventDate "2019.12.13"]
[EventType "swiss"]
[EventCountry "MEX"]
[SourceTitle "playchess.com"]
[Source "ChessBase"]
[SourceQuality "1"]
[TimeControl "5400+30"]

1. d4 {[%emt 0:00:00]} d5 {[%emt 0:03:39]} 2. Nf3 {[%emt 0:00:00]} Nf6 {[%emt 0:00:23]} 3. c4 {[%emt 0:00:00]} e6 {[%emt 0:00:22]} 4. cxd5 {[%emt 0:00:46]} exd5 {[%emt 0:00:22]} 5. Nc3 {[%emt 0:00:02]} c6 {[%emt 0:00:37]} 6. Bf4 {[%emt 0:02:01]} Bd6 {[%emt 0:05:22]} 7. Bg3 {[%emt 0:00:30]} O-O {[%emt 0:00:52]} 8. e3 {[%emt 0:00:11]} Qe7 {[%emt 0:05:40]} 9. Bd3 {[%emt 0:02:17]} Bg4 {[%emt 0:03:18]} 10. Qb3 {[%emt 0:06:21]} Bxf3 {[%emt 0:02:02]} 11. gxf3 {[%emt 0:00:12]} b6 {[%emt 0:00:14]} 12. O-O-O {[%emt 0:05:48]} Nh5 {[%emt 0:23:58]} 13. e4 {[%emt 0:11:40]} Bf4+ {[%emt 0:00:19]} 14. Kb1 {[%emt 0:00:08]} dxe4 {[%emt 0:03:03]} 15. Bxe4 {[%emt 0:03:41]} Bxg3 {[%emt 0:03:49]} 16. hxg3 {[%emt 0:09:09]} Nf6 {[%emt 0:00:15]} 17. d5 {[%emt 0:00:04]} Nxe4 {[%emt 0:01:20]} 18. Nxe4 {[%emt 0:01:24]} c5 {[%emt 0:08:43]} 19. d6 {[%emt 0:13:04]} Qe6 {[%emt 0:14:46]} 20. Qxe6 {[%emt 0:03:26]} fxe6 {[%emt 0:00:02]} 21. Ng5 {[%emt 0:00:59]} Rf5 {[%emt 0:02:55]} 22. f4 {[%emt 0:04:10]} e5 {[%emt 0:04:15]} 23. Rxh7 {[%emt 0:15:35]} Rxg5 {[%emt 0:02:57]} 24. Rdh1 {[%emt 0:00:04]} exf4 {[%emt 0:00:44]} 25. Rh8+ {[%emt 0:00:52]} Kf7 {[%emt 0:00:02]} 26. d7 {[%emt 0:00:12]} Nxd7 {[%emt 0:00:18]} 27. Rxa8 {[%emt 0:00:05]} fxg3 {[%emt 0:00:48]} 28. fxg3 {[%emt 0:00:43]} Rxg3 {[%emt 0:01:09]} 29. Rxa7 {[%emt 0:00:04]} Rd3 {[%emt 0:00:49]} 30. Kc2 {[%emt 0:01:24]} Rd4 {[%emt 0:00:55]} 31. Rd1 {[%emt 0:01:05]} Rxd1 {[%emt 0:03:42]} 32. Kxd1 {[%emt 0:00:10]} Ke6 {[%emt 0:00:04]} 33. Ke2 {[%emt 0:00:10]} g5 {[%emt 0:00:29]} 34. Rb7 {[%emt 0:01:19]} Kd6 {[%emt 0:00:20]} 35. Ke3 {[%emt 0:00:04]} Kc6 {[%emt 0:00:23]} 36. Ra7 {[%emt 0:00:04]} Ne5 {[%emt 0:00:35]} 37. Ke4 {[%emt 0:03:37]} Nc4 {[%emt 0:00:30]} 38. b3 {[%emt 0:00:12]} Nd6+ {[%emt 0:01:28]} 39. Kd3 {[%emt 0:00:04]} Kd5 {[%emt 0:02:57]} 40. Rg7 {[%emt 0:02:38]} Ne4 {[%emt 0:00:15]} 41. a4 {[%emt 0:01:04]} Nf2+ {[%emt 0:01:17]} 42. Ke2 {[%emt 0:02:36]} Ne4 {[%emt 0:02:05]} 43. Ke3 {[%emt 0:00:02]} Nd6 {[%emt 0:01:41]} 44. Rxg5+ {[%emt 0:00:05]} Kc6 {[%emt 0:00:03]} 45. Rg6 {[%emt 0:01:13]} Kd5 {[%emt 0:00:22]} 46. Kd3 {[%emt 0:02:25]} b5 {[%emt 0:01:43]} 47. a5 {[%emt 0:00:40]} c4+ {[%emt 0:00:13]} 48. Kc3 {[%emt 0:00:49]} Kc5 {[%emt 0:00:40]} 49. b4+ {[%emt 0:01:41]} Kd5 {[%emt 0:01:01]} 50. a6 {[%emt 0:00:09]} Nc8 {[%emt 0:00:27]} 51. Rg8 {[%emt 0:00:24]} Nb6 {[%emt 0:00:46]} 52. a7 {[%emt 0:00:12]} Na4+ {[%emt 0:00:01]} 53. Kc2 {[%emt 0:00:06]} 1-0

[Event "XXXI Torre Memorial 2019"]
[Site "Merida"]
[Date "2019.12.15"]
[Round "3.17"]
[White "Quesada Perez, Yasser"]
[Black "Luna Javier, Edgar Froylan"]
[Result "1-0"]
[ECO "A28"]
[WhiteElo "2582"]
[BlackElo "2112"]
[Annotator "ChessBase"]
[PlyCount "67"]
[EventDate "2019.12.13"]
[EventType "swiss"]
[EventCountry "MEX"]
[SourceTitle "playchess.com"]
[Source "ChessBase"]
[SourceQuality "1"]
[TimeControl "5400+30"]

1. c4 {[%emt 0:00:00]} e5 {[%emt 0:03:12]} 2. Nc3 {[%emt 0:00:00]} Nf6 {[%emt 0:00:22]} 3. Nf3 {[%emt 0:00:00]} Nc6 {[%emt 0:00:36]} 4. e3 {[%emt 0:00:00]} d5 {[%emt 0:02:21]} 5. cxd5 {[%emt 0:00:00]} Nxd5 {[%emt 0:00:06]} 6. Bb5 {[%emt 0:00:00]} Nxc3 {[%emt 0:01:28]} 7. bxc3 {[%emt 0:00:01]} Bd6 {[%emt 0:03:49]} 8. d4 {[%emt 0:00:16]} Bd7 {[%emt 0:06:06]} 9. O-O {[%emt 0:03:41]} e4 {[%emt 0:04:17]} 10. Nd2 {[%emt 0:00:48]} Qg5 {[%emt 0:05:23]} 11. Qe2 {[%emt 0:00:59]} O-O {[%emt 0:04:01]} 12. Nxe4 {[%emt 0:04:19]} Bxh2+ {[%emt 0:02:31]} 13. Kxh2 {[%emt 0:00:02]} Qh4+ {[%emt 0:00:01]} 14. Kg1 {[%emt 0:00:06]} Qxe4 {[%emt 0:00:15]} 15. Bd3 {[%emt 0:02:18]} Qh4 {[%emt 0:02:33]} 16. f3 {[%emt 0:23:07]} f5 {[%emt 0:03:44]} 17. Qf2 {[%emt 0:03:24]} Qh5 {[%emt 0:01:47]} 18. Qg3 {[%emt 0:01:00]} Rac8 {[%emt 0:07:13]} 19. Bd2 {[%emt 0:03:14]} Ne7 {[%emt 0:06:00]} 20. Rab1 {[%emt 0:07:22]} Bc6 {[%emt 0:15:47]} 21. e4 {[%emt 0:07:00]} b6 {[%emt 0:13:08]} 22. d5 {[%emt 0:03:03]} Bb7 {[%emt 0:01:00]} 23. c4 {[%emt 0:00:22]} Rf6 {[%emt 0:02:11]} 24. e5 {[%emt 0:02:30]} Rff8 {[%emt 0:04:19]} 25. e6 {[%emt 0:03:11]} Ng6 {[%emt 0:01:55]} 26. f4 {[%emt 0:08:25]} Rcd8 {[%emt 0:01:34]} 27. Rfe1 {[%emt 0:09:08]} Rfe8 {[%emt 0:01:24]} 28. Bb4 {[%emt 0:01:42]} b5 {[%emt 0:02:05]} 29. Ba3 {[%emt 0:02:22]} a6 {[%emt 0:00:54]} 30. Bc2 {[%emt 0:01:23]} Ba8 {[%emt 0:00:34]} 31. Rbd1 {[%emt 0:01:25]} Ne7 {[%emt 0:01:12]} 32. d6 {[%emt 0:03:19]} cxd6 {[%emt 0:00:32]} 33. Bxd6 {[%emt 0:00:01]} Bc6 {[%emt 0:01:42]} 34. Bxe7 {[%emt 0:00:30]} 1-0

[Event "XXXI Torre Memorial 2019"]
[Site "Merida"]
[Date "2019.12.15"]
[Round "3.18"]
[White "Obregon Rivero, Juan Carlos"]
[Black "Miranda Llanes, Yerisbel"]
[Result "1-0"]
[ECO "B10"]
[WhiteElo "2513"]
[BlackElo "2280"]
[Annotator "ChessBase"]
[PlyCount "81"]
[EventDate "2019.12.13"]
[EventType "swiss"]
[EventCountry "MEX"]
[SourceTitle "playchess.com"]
[Source "ChessBase"]
[SourceQuality "1"]
[TimeControl "5400+30"]

1. c4 {[%emt 0:00:00]} c6 {[%emt 0:00:42]} 2. e4 {[%emt 0:00:06]} d5 {[%emt 0:00:18]} 3. exd5 {[%emt 0:00:07]} cxd5 {[%emt 0:00:13]} 4. cxd5 {[%emt 0:00:04]} Qxd5 {[%emt 0:00:23]} 5. Nc3 {[%emt 0:00:15]} Qd8 {[%emt 0:01:29]} 6. d4 {[%emt 0:00:09]} e6 {[%emt 0:00:44]} 7. Nf3 {[%emt 0:00:12]} Nf6 {[%emt 0:00:50]} 8. Bd3 {[%emt 0:01:23]} Be7 {[%emt 0:01:08]} 9. O-O {[%emt 0:00:08]} O-O {[%emt 0:00:34]} 10. Re1 {[%emt 0:00:10]} b6 {[%emt 0:02:11]} 11. a3 {[%emt 0:01:22]} Bb7 {[%emt 0:00:39]} 12. Bc2 {[%emt 0:00:01]} Nd5 {[%emt 0:11:27]} 13. Qd3 {[%emt 0:04:07]} g6 {[%emt 0:00:19]} 14. h4 {[%emt 0:00:45]} Nxc3 {[%emt 0:04:15]} 15. bxc3 {[%emt 0:00:07]} Bxh4 {[%emt 0:00:28]} 16. Bh6 {[%emt 0:01:14]} Re8 {[%emt 0:03:16]} 17. Ba4 {[%emt 0:00:36]} Bxf3 {[%emt 0:06:02]} 18. Qxf3 {[%emt 0:07:21]} Nd7 {[%emt 0:01:22]} 19. g3 {[%emt 0:07:15]} Be7 {[%emt 0:04:32]} 20. Qb7 {[%emt 0:00:17]} Nf6 {[%emt 0:02:06]} 21. Bxe8 {[%emt 0:00:17]} Nxe8 {[%emt 0:03:23]} 22. Qf3 {[%emt 0:02:32]} Nd6 {[%emt 0:02:41]} 23. d5 {[%emt 0:00:58]} exd5 {[%emt 0:03:36]} 24. Rad1 {[%emt 0:07:12]} Bf8 {[%emt 0:03:28]} 25. Bxf8 {[%emt 0:01:13]} Qxf8 {[%emt 0:00:11]} 26. Rxd5 {[%emt 0:00:15]} Rc8 {[%emt 0:04:43]} 27. Qf6 {[%emt 0:00:49]} Ne8 {[%emt 0:04:15]} 28. Qd4 {[%emt 0:00:03]} Nc7 {[%emt 0:04:20]} 29. Rd7 {[%emt 0:00:22]} Ne6 {[%emt 0:05:48]} 30. Qf6 {[%emt 0:04:20]} Rc7 {[%emt 0:02:26]} 31. Red1 {[%emt 0:01:30]} Rxd7 {[%emt 0:01:10]} 32. Rxd7 {[%emt 0:00:03]} a6 {[%emt 0:03:21]} 33. c4 {[%emt 0:01:35]} Qe8 {[%emt 0:03:45]} 34. Rd6 {[%emt 0:01:34]} Qa4 {[%emt 0:03:32]} 35. Rxb6 {[%emt 0:01:19]} Qxa3 {[%emt 0:00:54]} 36. Rb7 {[%emt 0:01:48]} Qf8 {[%emt 0:02:06]} 37. Qe5 {[%emt 0:00:18]} Qa3 {[%emt 0:01:11]} 38. c5 {[%emt 0:01:44]} Qc1+ {[%emt 0:07:06]} 39. Kg2 {[%emt 0:00:15]} Qc4 {[%emt 0:00:44]} 40. Rb8+ {[%emt 0:00:21]} Nf8 {[%emt 0:00:08]} 41. Qd6 {[%emt 0:00:12]} 1-0

[Event "XXXI Torre Memorial 2019"]
[Site "Merida"]
[Date "2019.12.15"]
[Round "4.3"]
[White "Ramirez, Alejandro"]
[Black "Fernandez De La Vara, Arnaldo"]
[Result "0-1"]
[ECO "E12"]
[WhiteElo "2589"]
[BlackElo "2463"]
[Annotator "RC"]
[PlyCount "29"]
[EventDate "2019.12.13"]
[EventType "swiss"]
[EventCountry "MEX"]
[SourceTitle "playchess.com"]
[Source "ChessBase"]
[SourceQuality "1"]
[TimeControl "5400+30"]

1. d4 Nf6 2. c4 e6 3. Nf3 b6 4. Bf4 Bb7 5. e3 Bb4+ 6. Nbd2 O-O 7. Be2 d6 8. O-O Bxd2 9. Nxd2 Nbd7 10. h3 e5 11. Bh2 a5 12. c5 dxc5 13. Rc1 Qe7 14. Bf3 e4 15. Bg4 0-1

[Event "XXXI Torre Memorial 2019"]
[Site "Merida"]
[Date "2019.12.15"]
[Round "4.12"]
[White "Ortiz Suarez, Isan Reynaldo"]
[Black "Garcia Matos, Richard Alejandro"]
[Result "1-0"]
[ECO "D78"]
[WhiteElo "2549"]
[BlackElo "2330"]
[Annotator "RC"]
[PlyCount "61"]
[EventDate "2019.12.13"]
[EventType "swiss"]
[EventCountry "MEX"]
[SourceTitle "playchess.com"]
[Source "ChessBase"]
[SourceQuality "1"]
[TimeControl "5400+30"]

1. c4 {[%emt 0:00:00]} c6 {[%emt 0:00:00]} 2. Nf3 {[%emt 0:02:36]} Nf6 {[%emt 0:00:18]} 3. g3 {[%emt 0:00:24]} d5 {[%emt 0:00:33]} 4. Bg2 {[%emt 0:00:05]} g6 {[%emt 0:01:06]} 5. O-O {[%emt 0:00:10]} Bg7 {[%emt 0:00:06]} 6. d4 {[%emt 0:00:11]} O-O {[%emt 0:00:25]} 7. Nbd2 {[%emt 0:00:09]} dxc4 {[%emt 0:08:41]} 8. Nxc4 {[%emt 0:02:04]} Be6 {[%emt 0:00:24]} 9. Qc2 {[%emt 0:02:05]} h6 {[%emt 0:04:29]} 10. Bd2 {[%emt 0:02:01]} Nbd7 {[%emt 0:03:03]} 11. Na5 {[%emt 0:00:54]} Qc8 {[%emt 0:04:49]} 12. e4 {[%emt 0:00:53]} Re8 {[%emt 0:01:42]} 13. Rac1 {[%emt 0:02:09]} Bg4 {[%emt 0:03:46]} 14. Rfe1 {[%emt 0:08:55]} Nh7 {[%emt 0:05:15]} 15. Be3 {[%emt 0:07:35]} Ndf8 {[%emt 0:19:55]} 16. Qb3 {[%emt 0:03:27]} Qc7 {[%emt 0:02:15]} 17. Qb4 {[%emt 0:02:22]} Qb6 {[%emt 0:02:23]} 18. Qd2 {[%emt 0:05:07]} Ng5 {[%emt 0:04:59]} 19. Nxg5 {[%emt 0:01:14]} hxg5 {[%emt 0:00:03]} 20. b4 {[%emt 0:00:53]} Nh7 {[%emt 0:10:39]} 21. d5 {[%emt 0:01:51]} Qb5 {[%emt 0:00:21]} 22. Rc5 {[%emt 0:02:26]} Qa4 {[%emt 0:00:14]} 23. Nxb7 {[%emt 0:00:18]} cxd5 {[%emt 0:00:24]} 24. exd5 {[%emt 0:00:11]} Qa3 {[%emt 0:03:26]} 25. Rec1 {[%emt 0:05:04]} Rec8 {[%emt 0:04:51]} 26. h3 {[%emt 0:05:12]} Bf5 {[%emt 0:01:08]} 27. g4 {[%emt 0:00:11]} Bd7 {[%emt 0:00:27]} 28. d6 {[%emt 0:00:14]} exd6 {[%emt 0:01:55]} 29. Nxd6 {[%emt 0:00:12]} Rxc5 {[%emt 0:00:09]} 30. bxc5 {[%emt 0:00:09]} Rd8 {[%emt 0:00:14]} 31. Nb7 {[%emt 0:00:26]} 1-0

[Event "XXXI Torre Memorial 2019"]
[Site "Merida"]
[Date "2019.12.15"]
[Round "4.13"]
[White "Martin Del Campo C., Roberto"]
[Black "Gonzalez Zamora, Juan Carlos"]
[Result "1/2-1/2"]
[ECO "B42"]
[WhiteElo "2314"]
[BlackElo "2535"]
[Annotator "ChessBase"]
[PlyCount "108"]
[EventDate "2019.12.13"]
[EventType "swiss"]
[EventCountry "MEX"]
[SourceTitle "playchess.com"]
[Source "ChessBase"]
[SourceQuality "1"]
[TimeControl "5400+30"]

1. e4 {[%emt 0:04:40]} c5 {[%emt 0:00:00]} 2. Nf3 {[%emt 0:00:37]} e6 {[%emt 0:00:00]} 3. d4 {[%emt 0:01:12]} cxd4 {[%emt 0:00:00]} 4. Nxd4 {[%emt 0:00:02]} a6 {[%emt 0:00:08]} 5. Bd3 {[%emt 0:01:19]} Bc5 {[%emt 0:00:13]} 6. Nb3 {[%emt 0:02:04]} Be7 {[%emt 0:00:25]} 7. Nc3 {[%emt 0:01:35]} d6 {[%emt 0:00:40]} 8. f4 {[%emt 0:01:33]} Bh4+ {[%emt 0:02:46]} 9. g3 {[%emt 0:00:38]} Bf6 {[%emt 0:00:09]} 10. Qf3 {[%emt 0:04:56]} Nc6 {[%emt 0:03:04]} 11. Bd2 {[%emt 0:18:41]} Nge7 {[%emt 0:07:59]} 12. O-O-O {[%emt 0:08:28]} Qc7 {[%emt 0:14:37]} 13. g4 {[%emt 0:00:36]} Bxc3 {[%emt 0:10:20]} 14. Bxc3 {[%emt 0:00:27]} e5 {[%emt 0:00:00]} 15. f5 {[%emt 0:14:12]} b5 {[%emt 0:00:07]} 16. f6 {[%emt 0:01:42]} gxf6 {[%emt 0:00:10]} 17. Qxf6 {[%emt 0:00:04]} Rg8 {[%emt 0:01:03]} 18. Be2 {[%emt 0:05:00]} Be6 {[%emt 0:00:33]} 19. g5 {[%emt 0:03:34]} O-O-O {[%emt 0:02:36]} 20. Rhg1 {[%emt 0:03:32]} Kb8 {[%emt 0:07:44]} 21. Kb1 {[%emt 0:05:13]} Rc8 {[%emt 0:07:44]} 22. Bg4 {[%emt 0:04:29]} b4 {[%emt 0:12:42]} 23. Bxe6 {[%emt 0:01:21]} fxe6 {[%emt 0:00:09]} 24. Bd2 {[%emt 0:00:05]} a5 {[%emt 0:02:02]} 25. Qxe6 {[%emt 0:03:08]} a4 {[%emt 0:00:34]} 26. Na1 {[%emt 0:00:10]} Nd4 {[%emt 0:00:59]} 27. Qh3 {[%emt 0:00:21]} Nec6 {[%emt 0:01:28]} 28. a3 {[%emt 0:03:49]} bxa3 {[%emt 0:06:58]} 29. Qxa3 {[%emt 0:00:09]} Kb7 {[%emt 0:00:01]} 30. Be3 {[%emt 0:02:23]} Ra8 {[%emt 0:00:14]} 31. Bxd4 {[%emt 0:00:31]} exd4 {[%emt 0:01:33]} 32. h4 {[%emt 0:00:31]} Ra5 {[%emt 0:00:55]} 33. Rgf1 {[%emt 0:00:32]} Re8 {[%emt 0:01:05]} 34. Rf5 {[%emt 0:02:30]} Rxe4 {[%emt 0:02:54]} 35. Rxa5 {[%emt 0:00:10]} Qxa5 {[%emt 0:00:27]} 36. Qxd6 {[%emt 0:00:07]} Re1 {[%emt 0:00:47]} 37. Rxe1 {[%emt 0:01:25]} Qxe1+ {[%emt 0:00:10]} 38. Ka2 {[%emt 0:00:01]} Qxh4 {[%emt 0:02:46]} 39. Qc5 {[%emt 0:00:11]} Qf4 {[%emt 0:03:17]} 40. b3 {[%emt 0:01:33]} Qf7 {[%emt 0:03:14]} 41. Qb5+ {[%emt 0:01:25]} Kc7 {[%emt 0:00:02]} 42. Qxa4 {[%emt 0:00:14]} Qd5 {[%emt 0:00:37]} 43. Ka3 {[%emt 0:02:19]} Qxg5 {[%emt 0:00:26]} 44. b4 {[%emt 0:00:11]} Qc1+ {[%emt 0:01:03]} 45. Ka2 {[%emt 0:01:07]} Qd2 {[%emt 0:00:30]} 46. b5 {[%emt 0:00:29]} Qa5 {[%emt 0:03:31]} 47. Ka3 {[%emt 0:02:25]} Qc3+ {[%emt 0:02:55]} 48. Nb3 {[%emt 0:00:31]} Ne5 {[%emt 0:01:26]} 49. Qa7+ {[%emt 0:00:46]} Kd6 {[%emt 0:00:45]} 50. Qxd4+ {[%emt 0:00:55]} Qxd4 {[%emt 0:00:06]} 51. Nxd4 {[%emt 0:00:01]} Kc5 {[%emt 0:00:19]} 52. Nf5 {[%emt 0:00:28]} Kxb5 {[%emt 0:00:23]} 53. Kb3 {[%emt 0:00:04]} Kc5 {[%emt 0:00:08]} 54. Kc3 {[%emt 0:00:18]} Kb6 1/2-1/2

[Event "XXXI Torre Memorial 2019"]
[Site "Merida"]
[Date "2019.12.16"]
[Round "5.1"]
[White "Santiago, Yago De Moura"]
[Black "Ibarra Chami, Luis Fernando"]
[Result "1/2-1/2"]
[ECO "A28"]
[WhiteElo "2479"]
[BlackElo "2423"]
[Annotator "ChessBase"]
[PlyCount "37"]
[EventDate "2019.12.13"]
[EventType "swiss"]
[EventCountry "MEX"]
[SourceTitle "playchess.com"]
[Source "ChessBase"]
[SourceQuality "1"]
[TimeControl "5400+30"]

1. c4 {[%emt 0:00:00]} e5 {[%emt 0:10:55]} 2. Nc3 {[%emt 0:01:07]} Nf6 {[%emt 0:00:55]} 3. Nf3 {[%emt 0:00:12]} Nc6 {[%emt 0:00:18]} 4. e4 {[%emt 0:00:09]} Bb4 {[%emt 0:03:51]} 5. d3 {[%emt 0:00:19]} d6 {[%emt 0:06:13]} 6. a3 {[%emt 0:01:21]} Bxc3+ {[%emt 0:00:27]} 7. bxc3 {[%emt 0:00:11]} h6 {[%emt 0:08:11]} 8. g3 {[%emt 0:05:29]} Be6 {[%emt 0:05:30]} 9. Bg2 {[%emt 0:02:36]} Qd7 {[%emt 0:01:47]} 10. h3 {[%emt 0:07:15]} Ne7 {[%emt 0:05:31]} 11. Nd2 {[%emt 0:02:54]} Ng6 {[%emt 0:06:55]} 12. Rb1 {[%emt 0:35:58]} c6 {[%emt 0:04:32]} 13. d4 {[%emt 0:05:02]} Qc8 {[%emt 0:01:54]} 14. Qe2 {[%emt 0:00:47]} O-O {[%emt 0:02:18]} 15. d5 {[%emt 0:12:11]} Bd7 {[%emt 0:01:16]} 16. Qe3 {[%emt 0:00:32]} Re8 {[%emt 0:01:47]} 17. Kf1 {[%emt 0:00:28]} Qc7 {[%emt 0:02:00]} 18. Kg1 {[%emt 0:00:14]} Rec8 {[%emt 0:02:07]} 19. Bb2 {[%emt 0:02:41]} 1/2-1/2